bitfinex/quotes_ETHUSD_20241030
["timestamp","ask_amount","ask_price","bid_price","bid_amount"]
[1730278987085,3.75223,2665.1,2664.9,0.8235]
[1730278987242,0.7945,2665.8,2664.7,0.39025299]
[1730278987243,3.75248,2664.9,2664.7,0.39025299]
[1730278987534,3.75262,2664.8,2664.4,0.7914]
[1730278987705,3.75248,2664.9,2664.4,0.7914]
[1730278988032,3.75277,2664.7,2664.4,0.7914]
[1730278988388,3.75248,2664.9,2664.4,0.7914]
[1730278988389,3.75267,2664.8,2664.4,0.7914]
[1730278988593,3.75267,2664.8,2664.5,0.45447]
[1730278989426,3.75236,2665.0,2664.5,0.45447]
[1730278989987,3.75257,2664.9,2664.5,0.45447]
[1730278990228,3.75236,2665.0,2664.5,0.45447]
[1730278990396,3.75236,2665.0,2664.6,0.50739845]
[1730278990727,7.50484,2665.0,2664.6,0.50739845]
[1730278991138,3.75255,2664.9,2664.6,0.50739845]
[1730278991455,3.75236,2665.0,2664.6,0.50739845]
[1730278991629,7.50484,2665.0,2664.6,0.50739845]
[1730278991834,3.75236,2665.0,2664.6,0.50739845]
[1730278992339,3.75248,2664.9,2664.6,0.50739845]
[1730278992839,3.75236,2665.0,2664.6,0.50739845]
[1730278993331,3.7522,2665.1,2664.7,0.807]
[1730278993495,0.8069,2665.6,2664.7,0.807]
[1730278993693,7.50373,2665.4,2664.8,3.75255]
[1730278993897,7.50369,2665.4,2665.0,0.807]
[1730278994125,3.75159,2665.6,2665.0,4.55934]
[1730278994290,3.75159,2665.6,2665.0,0.88204021]
[1730278994491,3.75159,2665.6,2665.1,0.54657202]
[1730278994728,3.75195,2665.3,2665.0,0.807]
[1730278994922,0.7741,2665.4,2664.7,3.75276]
[1730278995158,3.75213,2665.2,2664.7,3.75276]
[1730278995656,4.52597,2665.4,2664.6,0.7509]
[1730278995657,0.7741,2665.4,2664.6,0.7509]
[1730278995964,3.75257,2664.9,2664.6,0.7509]
[1730278996961,3.75245,2665.0,2664.6,0.7509]
[1730278997265,7.5049,2665.0,2664.6,0.7509]
[1730278997459,3.75245,2665.0,2664.6,0.7509]
[1730278997767,3.75255,2664.9,2664.6,0.7509]
[1730278998070,3.75255,2664.9,2664.6,1.17064779]
[1730278998270,3.75259,2664.9,2664.6,1.17064779]
[1730278998472,7.50493,2665.0,2664.6,0.7509]
[1730278999285,3.75245,2665.0,2664.6,0.7509]
[1730278999461,3.75271,2664.8,2664.6,0.7509]
[1730279001574,3.75214,2665.2,2664.6,0.7509]
[1730279001781,3.75236,2665.0,2664.6,0.7509]
[1730279001963,3.75236,2665.0,2664.6,0.82595026]
[1730279002179,3.75236,2665.0,2664.6,4.57884026]
[1730279002476,3.7522,2665.1,2664.6,4.57884026]
[1730279002660,3.7523,2665.1,2664.6,1.62874281]
[1730279002843,3.7523,2665.1,2664.6,5.38161281]
[1730279003043,3.7523,2665.1,2664.6,1.62874281]
[1730279004480,3.75235,2665.0,2664.6,1.62874281]
[1730279004665,3.75214,2665.2,2664.7,0.57571028]
[1730279004872,3.75214,2665.2,2664.7,4.32846028]
[1730279005376,3.75198,2665.3,2664.8,4.57022]
[1730279005897,3.75187,2665.4,2664.8,4.57022]
[1730279006068,3.75159,2665.6,2665.0,0.8176]
[1730279006261,3.75159,2665.6,2664.9,4.37964654]
[1730279006262,3.75159,2665.6,2665.1,3.75213]
[1730279006456,3.75143,2665.7,2665.2,0.8176]
[1730279006769,9.63928,2665.8,2665.2,1.192813]
[1730279006978,3.75135,2665.7,2665.2,1.192813]
[1730279007296,3.75135,2665.7,2665.3,0.4944933]
[1730279007598,3.75128,2665.8,2665.3,4.2463433]
[1730279007752,3.75128,2665.8,2665.4,0.821]
[1730279007956,3.75099,2666.0,2665.3,3.75185]
[1730279007957,3.75099,2666.0,2665.5,3.75163]
[1730279008197,3.75099,2666.0,2665.7,0.8062]
[1730279011785,7.34091,2666.1,2665.7,0.8062]
[1730279012294,3.75094,2666.0,2665.7,0.8062]
[1730279013800,7.34083,2666.1,2665.7,0.8062]
[1730279014088,3.75095,2666.0,2665.8,0.455767]
[1730279014310,3.75095,2666.0,2665.7,0.8062]
[1730279020902,3.59,2666.1,2665.7,0.8062]
[1730279021269,7.34082,2666.1,2665.7,0.8062]
[1730279024493,3.75093,2666.0,2665.7,0.8062]
[1730279027299,3.75109,2665.9,2665.5,0.7583]
[1730279027518,4.52626,2666.0,2665.5,5.336008]
[1730279028427,3.75108,2665.9,2665.5,1.584468]
[1730279028775,3.75107,2665.9,2665.5,1.584468]
[1730279028996,3.75143,2665.7,2665.3,0.7554]
[1730279029581,3.75143,2665.7,2665.1,3.75216]
[1730279029582,3.75171,2665.5,2665.0,4.53056]
[1730279029785,3.75171,2665.5,2665.1,0.453056]
[1730279029987,4.57761,2665.6,2665.1,0.453056]
[1730279030190,3.752,2665.3,2665.0,0.7783]
[1730279030621,3.75192,2665.3,2665.0,0.7783]
[1730279030793,3.75188,2665.4,2665.0,0.7783]
[1730279030985,3.75206,2665.2,2664.8,4.55945]
[1730279031425,3.75192,2665.3,2664.8,4.55945]
[1730279031715,3.7517,2665.5,2665.0,3.75232]
[1730279033003,4.57769,2665.6,2665.0,3.75226]
[1730279033176,3.75127,2665.8,2665.2,0.7543]
[1730279033522,0.8101,2665.9,2665.3,3.7519]
[1730279033816,3.75125,2665.8,2665.3,3.7519]
[1730279034003,3.75125,2665.8,2665.3,4.62021214]
[1730279035018,3.75107,2665.9,2665.4,3.75178]
[1730279035184,9.63901,2666.0,2665.4,3.75178]
[1730279035384,3.75121,2665.8,2665.4,0.53743921]
[1730279035589,0.7807,2665.8,2665.2,0.7543]
[1730279035891,3.75166,2665.5,2665.2,0.7543]
[1730279036327,3.75178,2665.4,2665.2,0.7543]
[1730279036633,3.75166,2665.5,2664.9,4.29289436]
[1730279036784,7.50344,2665.5,2665.0,0.80454244]
[1730279037135,3.75191,2665.4,2665.0,0.80454244]
[1730279037616,3.75166,2665.5,2665.0,0.80454244]
[1730279037617,3.75195,2665.3,2665.0,0.80454244]
[1730279039097,7.50346,2665.5,2665.0,0.80454244]
[1730279039302,3.75169,2665.5,2665.0,0.80454244]
[1730279039499,3.75194,2665.3,2665.0,0.80454244]
[1730279039798,3.75194,2665.3,2665.1,0.53548124]
[1730279040025,3.75178,2665.4,2665.1,0.53548124]
[1730279040343,3.75178,2665.4,2664.9,4.55027]
[1730279040640,3.75169,2665.5,2664.9,0.7978]
[1730279041217,3.75179,2665.4,2664.9,4.55021]
[1730279041722,3.75189,2665.4,2664.9,0.7978]
[1730279041909,3.75189,2665.4,2664.9,4.55026]
[1730279042724,3.75192,2665.3,2664.9,0.7978]
[1730279042925,3.75192,2665.3,2664.9,1.29198436]
[1730279043463,3.75181,2665.4,2664.9,5.04435436]
[1730279043815,3.75181,2665.4,2665.0,3.75233]
[1730279044018,3.75181,2665.4,2665.1,0.5119354]
[1730279044844,3.75152,2665.6,2664.9,1.367024]
[1730279044845,4.53195,2665.8,2664.9,1.29198436]
[1730279045011,3.75218,2665.2,2664.9,0.7978]
[1730279045210,3.75223,2665.1,2664.9,0.7978]
[1730279046245,3.75255,2664.9,2664.7,0.39149361]
[1730279046453,3.75255,2664.9,2664.6,0.7725]
[1730279046753,3.75255,2664.9,2664.6,1.23069065]
[1730279047056,3.75216,2665.2,2664.6,1.23069065]
[1730279047347,7.50321,2665.6,2665.0,0.8129]
[1730279047526,3.75176,2665.5,2665.0,4.56517]
[1730279047725,3.75176,2665.5,2665.1,0.456517]
[1730279048121,3.75158,2665.6,2665.1,0.456517]
[1730279048336,3.75164,2665.5,2665.1,0.456517]
[1730279048712,3.75169,2665.5,2665.1,0.456517]
[1730279049249,3.75147,2665.7,2665.1,0.456517]
[1730279049454,3.75167,2665.5,2665.2,0.5021747]
[1730279049749,3.75151,2665.6,2665.2,0.5021747]
[1730279050265,3.75152,2665.6,2665.3,0.824]
[1730279050422,7.50292,2665.7,2665.3,0.824]
[1730279050628,3.7515,2665.6,2665.3,0.824]
[1730279051826,3.75145,2665.7,2665.3,1.33182847]
[1730279052166,3.75129,2665.8,2665.3,5.08370847]
[1730279052349,3.75129,2665.8,2665.4,0.50837085]
[1730279052721,8.09249,2666.1,2665.5,0.7684]
[1730279052920,3.75116,2665.9,2665.5,0.7684]
[1730279053125,3.75129,2665.8,2665.5,0.7684]
[1730279053442,3.75129,2665.8,2665.5,1.27126509]
[1730279054244,3.75129,2665.8,2665.5,0.7684]
[1730279055046,3.75136,2665.7,2665.5,0.7684]
[1730279055454,3.75129,2665.8,2665.5,0.7684]
[1730279055670,3.75136,2665.7,2665.5,0.7684]
[1730279056036,7.5026,2665.8,2665.5,0.7684]
[1730279056242,3.75129,2665.8,2665.5,1.22042]
[1730279057053,3.75103,2666.0,2665.5,1.22042]
[1730279057379,3.7511,2665.9,2665.5,0.7684]
[1730279058241,2.9366,2666.3,2665.5,0.7684]
[1730279058494,3.75144,2665.7,2665.3,0.75]
[1730279059175,4.52082,2665.8,2665.3,0.75]
[1730279059345,8.27217,2665.8,2665.3,0.75]
[1730279059550,3.75135,2665.7,2665.3,0.75]
[1730279065749,7.78331233,2665.8,2665.3,4.50189]
[1730279065944,3.26259233,2665.8,2665.4,4.577136]
[1730279066290,3.75114,2665.9,2665.5,0.8329]
[1730279068491,7.5023,2665.9,2665.5,0.8329]
[1730279069190,3.75114,2665.9,2665.5,0.8329]
[1730279071569,10.76490233,2665.9,2665.5,0.8329]
[1730279071872,7.01373233,2665.9,2665.5,0.8329]
[1730279072201,7.01373233,2665.9,2665.5,1.291359]
[1730279072571,1.45999654,2665.7,2665.5,1.291359]
[1730279073700,1.45999654,2665.7,2665.5,0.8329]
[1730279075654,3.7515,2665.6,2665.1,4.12758]
[1730279075858,1.45999654,2665.5,2665.2,0.7641]
[1730279076060,0.61546811,2665.5,2665.2,0.7641]
[1730279076860,0.61546811,2665.5,2665.2,1.928491]
[1730279077077,0.61546811,2665.5,2665.2,5.680541]
[1730279077301,0.61546811,2665.5,2665.2,1.928491]
[1730279077507,3.75178,2665.4,2665.2,1.928491]
[1730279077722,1.45999654,2665.3,2665.2,1.928491]
[1730279078137,3.7514,2665.7,2665.2,4.51607]
[1730279078294,1.45999654,2665.6,2665.2,4.51607]
[1730279082026,5.21151654,2665.6,2665.2,0.7641]
[1730279082185,5.21151654,2665.6,2665.2,1.628495]
[1730279083541,5.21151654,2665.6,2665.2,5.380525]
[1730279085373,1.45999654,2665.6,2665.2,9.132515]
[1730279085532,1.45999654,2665.6,2665.2,5.380485]
[1730279085727,3.75131,2665.8,2665.3,4.5764]
[1730279085968,3.75122,2665.8,2665.4,3.75169]
[1730279087739,1.45999654,2665.7,2665.4,3.75169]
[1730279089326,1.45999654,2665.7,2665.5,0.8178]
[1730279089529,1.45999654,2665.7,2665.5,1.32855385]
[1730279090858,1.45999654,2665.7,2665.5,0.8178]
[1730279093999,1.45999654,2665.7,2665.3,4.2899585]
[1730279094000,5.21139654,2665.7,2665.3,0.5380485]
[1730279094295,5.21139654,2665.7,2665.3,4.2899585]
[1730279094491,5.21139654,2665.7,2665.4,0.88570385]
[1730279094870,1.45999654,2665.7,2665.4,0.88570385]
[1730279097166,5.21141654,2665.7,2665.4,0.88570385]
[1730279099471,1.45999654,2665.7,2665.4,0.88570385]
[1730279104872,5.21121654,2665.8,2665.4,0.88570385]
[1730279105064,1.45999654,2665.8,2665.4,4.63745385]
[1730279105221,1.45999654,2665.8,2665.5,1.24144539]
[1730279105421,5.21122654,2665.8,2665.5,1.24144539]
[1730279106071,5.21122654,2665.8,2665.5,0.74144539]
[1730279106287,5.21122654,2665.8,2665.5,0.2777]
[1730279106486,1.45999654,2665.8,2665.5,0.2777]
[1730279106867,5.21124654,2665.8,2665.5,0.2777]
[1730279107179,5.21127654,2665.8,2665.5,0.2777]
[1730279108052,3.75164,2665.5,2665.2,0.3754]
[1730279108254,1.45999654,2665.6,2665.2,4.12745]
[1730279109162,5.21150654,2665.6,2665.3,0.7585]
[1730279109563,1.45999654,2665.6,2665.3,0.7585]
[1730279110080,5.21152654,2665.6,2665.3,0.7585]
[1730279110640,1.45999654,2665.6,2665.3,0.7585]
[1730279110839,1.45999654,2665.6,2665.3,1.247095]
[1730279111075,5.21152654,2665.6,2665.3,1.247095]
[1730279111646,5.21152654,2665.6,2665.1,1.1749]
[1730279111854,3.75167,2665.5,2665.1,1.1749]
[1730279112596,1.45999654,2665.4,2665.1,1.1749]
[1730279114600,3.75167,2665.5,2665.1,1.1749]
[1730279115549,1.45999654,2665.6,2665.1,1.1749]
[1730279115749,3.75164,2665.5,2665.1,1.1749]
[1730279116399,7.50336,2665.5,2665.1,1.1749]
[1730279116607,3.75164,2665.5,2665.1,1.1749]
[1730279117393,1.45999654,2665.4,2664.9,0.7551]
[1730279117553,2.28819654,2665.4,2664.9,0.7551]
[1730279117754,5.21212654,2665.2,2664.8,0.05628939]
[1730279118554,3.7522,2665.1,2664.8,0.05628939]
[1730279118979,4.58277,2665.0,2664.8,0.05628939]
[1730279119286,6.04271654,2665.0,2664.8,0.05628939]
[1730279119482,6.64698819,2665.0,2664.8,0.05628939]
[1730279119699,10.39944819,2665.0,2664.8,0.05628939]
[1730279119932,3.75248,2664.9,2664.8,0.05628939]
[1730279121722,6.04271654,2665.0,2664.8,0.05628939]
[1730279121930,9.79516654,2665.0,2664.8,0.05628939]
[1730279122217,6.04271654,2665.0,2664.8,0.05628939]
[1730279122450,3.75248,2664.9,2664.8,0.05628939]
[1730279122626,3.75273,2664.8,2664.3,4.91144]
[1730279122778,3.75273,2664.8,2664.4,0.491144]
[1730279123794,3.75248,2664.9,2664.4,0.491144]
[1730279124113,3.75265,2664.8,2664.4,0.491144]
[1730279125814,3.75286,2664.7,2664.4,0.491144]
[1730279126012,3.75286,2664.7,2664.3,1.1582]
[1730279126737,3.753,2664.6,2664.3,1.1582]
[1730279127745,3.75307,2664.5,2664.3,1.1582]
[1730279127921,3.75307,2664.5,2664.3,0.3754]
[1730279128241,3.75329,2664.4,2664.1,0.05630176]
[1730279128445,2.27829654,2664.6,2664.1,0.05630176]
[1730279128743,3.75347,2664.2,2664.1,0.05630176]
[1730279128910,5.21346654,2664.2,2664.1,0.05630176]
[1730279130006,5.21346654,2664.2,2663.5,4.90616]
[1730279130007,3.75389,2663.9,2663.5,4.90616]
[1730279130206,3.75389,2663.9,2663.5,0.7764]
[1730279130434,4.52339,2663.9,2663.5,0.828565]
[1730279130640,8.2774,2663.9,2663.5,0.828565]
[1730279130796,8.2774,2663.9,2663.3,8.28572]
[1730279131122,4.52339,2663.9,2663.3,8.28572]
[1730279131323,4.52339,2663.9,2663.3,4.53106]
[1730279131534,8.27737,2663.9,2663.3,4.53106]
[1730279132114,4.52339,2663.9,2663.3,4.53106]
[1730279132369,4.52339,2663.9,2663.4,3.75459]
[1730279132643,0.7695,2663.9,2663.5,3.75444]
[1730279133008,4.52339,2663.9,2663.4,4.21331795]
[1730279133506,4.52339,2663.9,2663.4,0.45873795]
[1730279133507,3.7541,2663.8,2663.4,0.45873795]
[1730279133703,4.52339,2663.9,2663.4,4.21331795]
[1730279136938,0.7695,2663.9,2663.5,3.75443]
[1730279137138,4.52348,2663.9,2663.4,0.45873795]
[1730279137348,4.52348,2663.9,2663.4,4.21332795]
[1730279137906,0.7695,2663.9,2663.4,0.45873795]
[1730279138108,0.7695,2663.9,2663.5,3.75445]
[1730279138308,4.5234,2663.9,2663.5,1.02042445]
[1730279139308,0.7695,2663.9,2663.5,1.02042445]
[1730279139549,4.52341,2663.9,2663.5,1.02042445]
[1730279141263,3.75411,2663.8,2663.3,4.53101]
[1730279143422,4.52341,2663.9,2663.4,3.75459]
[1730279143825,0.7695,2663.9,2663.5,3.75445]
[1730279144025,0.7695,2663.9,2663.5,4.72899565]
[1730279145130,0.7576,2664.2,2663.7,5.21403654]
[1730279145329,4.51081,2664.4,2663.8,3.75403]
[1730279145539,4.51081,2664.4,2663.9,3.75386]
[1730279147075,0.7576,2664.4,2664.0,3.75372]
[1730279147231,4.55654,2664.7,2664.2,3.75345]
[1730279147426,3.75291,2664.6,2664.2,3.75345]
[1730279148931,4.55651,2664.7,2664.2,3.75345]
[1730279149272,4.55651,2664.7,2664.3,0.46283121]
[1730279149439,4.55651,2664.7,2664.3,4.21602121]
[1730279149440,0.8037,2664.7,2664.3,4.21602121]
[1730279150172,0.8037,2664.7,2664.3,0.46283121]
[1730279150739,0.8037,2664.7,2664.3,4.21606121]
[1730279151628,4.55648,2664.7,2664.3,4.21606121]
[1730279152634,4.55648,2664.7,2664.3,0.46283121]
[1730279152928,4.55648,2664.7,2664.2,3.75347]
[1730279153759,3.75291,2664.6,2664.1,4.55337]
[1730279154269,1.45999654,2664.6,2663.9,4.91049]
[1730279154472,8.31391,2664.3,2663.8,3.75401]
[1730279154672,3.75368,2664.1,2663.7,0.7813]
[1730279154836,3.75385,2664.0,2663.5,4.53574]
[1730279155036,3.75385,2664.0,2663.6,0.86812785]
[1730279155481,3.75385,2664.0,2663.5,4.53574]
[1730279155775,3.75385,2664.0,2663.5,0.7813]
[1730279155957,3.75385,2664.0,2663.6,3.7543]
[1730279157430,3.75353,2664.2,2663.7,3.75414]
[1730279157771,3.75347,2664.2,2663.7,4.73661464]
[1730279158132,0.8071,2664.3,2663.9,0.8265]
[1730279158338,3.75315,2664.5,2663.9,4.5803]
[1730279158339,4.56165,2664.5,2663.9,4.5803]
[1730279158564,8.3148,2664.5,2663.9,8.33411]
[1730279158971,4.56165,2664.5,2663.9,4.5803]
[1730279159179,3.75319,2664.4,2663.9,4.5803]
[1730279159375,3.75319,2664.4,2663.9,5.60478589]
[1730279160682,7.50646,2664.4,2663.9,5.60478589]
[1730279160970,3.7532,2664.4,2663.9,9.35858589]
[1730279161600,0.8085,2664.5,2664.0,3.75372]
[1730279161809,0.8085,2664.5,2663.9,5.60478589]
[1730279161971,3.75319,2664.4,2663.9,9.35859589]
[1730279162174,3.75319,2664.4,2663.9,5.60478589]
[1730279163285,3.75319,2664.4,2664.0,3.75374]
[1730279163825,2.26849654,2664.5,2664.0,3.75374]
[1730279164216,2.26849654,2664.5,2664.1,0.93585259]
[1730279164217,0.8085,2664.5,2664.1,0.93585259]
[1730279164513,4.51316,2664.7,2664.1,0.93585259]
[1730279164813,3.75301,2664.6,2664.0,7.50741]
[1730279165014,3.75301,2664.6,2664.0,7.58247757]
[1730279165219,3.75301,2664.6,2664.0,7.50741]
[1730279165417,3.75301,2664.6,2664.0,3.75367]
[1730279165721,3.75301,2664.6,2664.0,4.73306065]
[1730279166201,3.75301,2664.6,2664.0,4.73305065]
[1730279166516,3.75301,2664.6,2664.1,3.75357]
[1730279166819,4.51313,2664.7,2664.1,3.75361]
[1730279167492,3.75291,2664.6,2664.1,3.75361]
[1730279167715,3.75291,2664.6,2664.1,4.586877]
[1730279167914,8.96591654,2664.6,2664.1,4.586877]
[1730279168105,5.21290654,2664.6,2664.1,4.586877]
[1730279169338,3.75291,2664.6,2664.1,4.586877]
[1730279169906,7.50592,2664.6,2664.1,4.586877]
[1730279170135,3.75305,2664.5,2664.1,4.586877]
[1730279170333,3.75305,2664.5,2664.1,3.7535]
[1730279171140,3.75291,2664.6,2664.1,3.7535]
[1730279171961,3.75305,2664.5,2664.1,3.7535]
[1730279172318,4.51319,2664.7,2664.1,3.7535]
[1730279172648,4.51319,2664.7,2664.1,4.586878]
[1730279173406,3.75294,2664.6,2664.1,4.586878]
[1730279173866,3.75305,2664.5,2664.1,0.833378]
[1730279174022,3.75305,2664.5,2664.0,3.75374]
[1730279174223,3.75308,2664.5,2664.0,3.75366]
[1730279175536,3.75294,2664.6,2664.2,0.8014]
[1730279175866,3.75291,2664.6,2664.2,0.8014]
[1730279176217,7.5059,2664.6,2664.2,0.8014]
[1730279176423,3.75291,2664.6,2664.2,0.8014]
[1730279177826,7.5059,2664.6,2664.2,0.8014]
[1730279178328,3.75291,2664.6,2664.2,0.8014]
[1730279178526,0.7603,2664.7,2664.2,0.8014]
[1730279178739,0.7603,2664.7,2664.2,4.55477]
[1730279178971,3.75278,2664.7,2664.2,4.55477]
[1730279179926,3.75271,2664.8,2664.2,4.55477]
[1730279180136,0.7845,2664.9,2664.4,3.75316]
[1730279180379,4.33949717,2665.2,2664.5,2.2902543]
[1730279180675,3.75212,2665.2,2664.6,4.50802]
[1730279180879,3.7522,2665.1,2664.6,4.50802]
[1730279181066,3.7522,2665.1,2664.6,4.56431137]
[1730279181576,0.7989,2665.0,2664.6,0.05629137]
[1730279181729,5.21275654,2664.7,2664.6,0.05629137]
[1730279181927,3.75303,2664.6,2664.0,3.75365]
[1730279182160,3.75308,2664.5,2664.0,1.72088098]
[1730279182427,3.75308,2664.5,2664.0,0.785]
[1730279182834,3.75308,2664.5,2664.0,4.53866]
[1730279183056,3.75308,2664.5,2664.0,4.53875]
[1730279184869,6.01174654,2664.7,2664.1,4.207457]
[1730279185377,3.75305,2664.5,2664.1,0.453867]
[1730279186487,4.55175,2664.7,2664.2,3.75346]
[1730279186780,8.30462,2664.7,2664.2,3.75346]
[1730279186955,8.30464,2664.7,2664.1,4.207407]
[1730279187152,4.55175,2664.7,2664.1,4.207407]
[1730279187360,3.7529,2664.6,2664.1,4.207407]
[1730279187580,4.55175,2664.7,2664.2,0.6527468]
[1730279187886,1.45999654,2664.9,2664.4,3.75318]
[1730279187887,3.75255,2664.9,2664.4,3.75318]
[1730279188084,3.75255,2664.9,2664.5,0.453308]
[1730279188285,3.75255,2664.9,2664.4,3.75318]
[1730279189280,0.8002,2665.2,2664.4,1.53505129]
[1730279189482,3.75221,2665.1,2664.6,6.02670654]
[1730279189656,3.75193,2665.3,2664.7,0.97796665]
[1730279189862,3.75193,2665.3,2664.8,3.75253]
[1730279190238,3.75174,2665.5,2665.0,5.21226654]
[1730279190395,3.7516,2665.6,2665.1,4.36229129]
[1730279190680,3.59,2665.7,2665.4,3.75164]
[1730279190881,7.34137,2665.7,2665.3,0.8139]
[1730279191086,3.75158,2665.6,2665.0,1.1893]
[1730279191245,3.75158,2665.6,2665.0,0.8139]
[1730279191246,1.45999654,2665.5,2665.0,0.8139]
[1730279191586,3.75199,2665.3,2665.0,0.8139]
[1730279191758,3.75217,2665.2,2664.8,0.7741]
[1730279192446,3.75229,2665.1,2664.8,0.7741]
[1730279193192,3.75197,2665.3,2664.8,0.7741]
[1730279193391,3.75178,2665.4,2664.9,3.82745905]
[1730279193545,4.55179,2665.6,2664.9,0.60615556]
[1730279193890,3.75167,2665.5,2665.0,3.75222]
[1730279194817,3.75178,2665.4,2664.9,3.75245]
[1730279195316,3.75178,2665.4,2664.9,4.76391465]
[1730279195927,3.75178,2665.4,2665.0,3.75234]
[1730279196077,3.75178,2665.4,2664.9,4.76383465]
[1730279196595,3.75178,2665.4,2664.9,1.01146465]
[1730279196792,3.75208,2665.2,2664.8,4.52671]
[1730279197117,1.45999654,2665.5,2664.8,0.7741]
[1730279197284,3.75228,2665.1,2664.8,0.7741]
[1730279198079,7.50456,2665.1,2664.8,0.7741]
[1730279198322,3.75228,2665.1,2664.8,0.7741]
[1730279199106,7.50458,2665.1,2664.8,0.7741]
[1730279199629,3.75228,2665.1,2664.8,0.7741]
[1730279199781,3.75234,2665.0,2664.8,0.7741]
[1730279199989,7.50459,2665.1,2664.8,0.7741]
[1730279200188,3.75237,2665.0,2664.8,0.7741]
[1730279200519,7.50456,2665.1,2664.8,0.7741]
[1730279200923,3.75228,2665.1,2664.8,0.7741]
[1730279201426,7.50458,2665.1,2664.8,0.7741]
[1730279201631,3.75228,2665.1,2664.8,0.7741]
[1730279202716,7.5046,2665.1,2664.8,0.7741]
[1730279203125,7.50457,2665.1,2664.8,0.7741]
[1730279203293,3.75228,2665.1,2664.8,0.7741]
[1730279204025,7.50459,2665.1,2664.8,0.7741]
[1730279204184,3.75235,2665.0,2664.8,0.7741]
[1730279209139,3.7522,2665.1,2664.8,0.7741]
[1730279211149,0.7999,2665.4,2664.8,0.7741]
[1730279211305,3.75225,2665.1,2664.8,0.7741]
[1730279211803,3.75245,2665.0,2664.8,0.7741]
[1730279211999,3.75245,2665.0,2664.6,2.59559654]
[1730279212628,3.75245,2665.0,2664.6,6.34847654]
[1730279212831,3.75245,2665.0,2664.7,0.63484765]
[1730279213440,3.75222,2665.1,2664.7,0.63484765]
[1730279213630,3.75222,2665.1,2664.8,1.45999654]
[1730279215439,3.75207,2665.2,2664.8,1.45999654]
[1730279216040,3.75229,2665.1,2664.8,1.45999654]
[1730279217502,3.75237,2665.0,2664.8,1.45999654]
[1730279217708,3.75237,2665.0,2664.7,0.63484765]
[1730279218233,3.75227,2665.1,2664.7,0.63484765]
[1730279218555,3.75227,2665.1,2664.8,0.69833342]
[1730279219228,3.75227,2665.1,2664.8,2.15832996]
[1730279220309,3.75227,2665.1,2664.8,1.45999654]
[1730279221706,3.752,2665.3,2664.8,1.45999654]
[1730279221908,0.7999,2665.4,2664.9,4.57148]
[1730279222145,3.75187,2665.4,2665.0,5.21231654]
[1730279222357,3.75187,2665.4,2665.0,6.22824819]
[1730279222519,3.75187,2665.4,2665.0,2.47592819]
[1730279223315,3.75159,2665.6,2665.0,6.22812819]
[1730279223623,3.75164,2665.5,2665.0,6.22812819]
[1730279223952,3.7518,2665.4,2665.1,0.74225282]
[1730279224711,3.75176,2665.5,2665.1,0.74225282]
[1730279224907,3.75086,2666.1,2665.2,2.21769654]
[1730279225216,3.75136,2665.7,2665.4,1.45999654]
[1730279226559,3.75136,2665.7,2665.2,5.96968654]
[1730279226711,3.7515,2665.6,2665.2,2.21769654]
[1730279226913,3.75136,2665.7,2665.3,0.59698865]
[1730279227948,3.75152,2665.6,2665.3,0.59698865]
[1730279228157,3.58082,2665.6,2665.3,0.59698865]
[1730279228317,3.75136,2665.7,2665.3,0.59698865]
[1730279228513,3.75136,2665.7,2665.2,5.96975654]
[1730279229111,3.75117,2665.9,2665.2,5.21196654]
[1730279229451,3.75128,2665.8,2665.3,4.94543]
[1730279229656,3.75117,2665.9,2665.4,1.45999654]
[1730279229816,3.75117,2665.9,2665.4,2.10804238]
[1730279230012,0.8003,2666.0,2665.4,2.10804238]
[1730279230318,3.75118,2665.9,2665.4,2.10804238]
[1730279230512,3.75126,2665.8,2665.4,2.10804238]
[1730279230910,3.75126,2665.8,2665.4,5.85981238]
[1730279231314,3.75126,2665.8,2665.5,1.08052424]
[1730279232250,3.59,2666.2,2665.6,2.22599654]
[1730279232251,8.12245,2666.2,2665.6,2.22599654]
[1730279232459,3.75101,2666.0,2665.6,2.22599654]
[1730279233037,7.50205,2666.0,2665.6,2.22599654]
[1730279233236,3.75111,2665.9,2665.6,2.22599654]
[1730279236058,3.75111,2665.9,2665.4,4.12717]
[1730279236059,3.75111,2665.9,2665.4,5.58716654]
[1730279236262,3.75111,2665.9,2665.4,7.14316554]
[1730279238581,3.75111,2665.9,2665.5,3.75163]
[1730279238897,3.75058,2666.3,2665.8,1.45999654]
[1730279239243,3.75067,2666.2,2665.8,2.06160119]
[1730279239557,3.75058,2666.3,2665.9,0.8048]
[1730279240943,3.75067,2666.2,2665.9,0.8048]
[1730279241144,0.7686,2666.6,2665.9,0.8048]
[1730279241145,5.97871654,2666.6,2665.9,0.8048]
[1730279241397,3.75086,2666.1,2665.9,0.8048]
[1730279241691,3.75086,2666.1,2665.7,4.50223]
[1730279242384,3.75086,2666.1,2665.8,0.3754]
[1730279242545,0.7811,2666.2,2665.8,0.3754]
[1730279242746,4.53176,2666.2,2665.8,0.3754]
[1730279243247,3.75066,2666.2,2665.8,0.3754]
[1730279246294,3.75065,2666.2,2665.8,0.3754]
[1730279248364,3.75065,2666.2,2665.7,4.87736]
[1730279248574,3.7508,2666.1,2665.7,4.87736]
[1730279249495,3.7508,2666.1,2665.7,5.88624865]
[1730279251898,3.7508,2666.1,2665.7,2.13498865]
[1730279253298,3.7508,2666.1,2665.7,5.88633865]
[1730279253896,3.75066,2666.2,2665.7,5.88633865]
[1730279254090,3.75066,2666.2,2665.7,4.87745]
[1730279254504,3.75066,2666.2,2665.8,1.45999654]
[1730279255610,3.75066,2666.2,2665.9,0.7844]
[1730279259806,3.75081,2666.1,2665.9,0.7844]
[1730279260868,3.75062,2666.3,2665.9,0.7844]
[1730279261211,7.50125,2666.3,2665.9,0.7844]